bitfinex-derivatives/quotes_BTCF0:USTF0_20250127
["timestamp","ask_amount","ask_price","bid_price","bid_amount"]
[1737996576907,0.57104612,100230.0,100220.0,0.001]
[1737996577104,0.56304612,100230.0,100220.0,0.001]
[1737996577307,0.56304612,100230.0,100220.0,0.00033256]
[1737996577615,0.199633,100210.0,100200.0,0.00014999]
[1737996577816,0.921233,100210.0,100200.0,0.00014999]
[1737996578015,0.921233,100210.0,100200.0,4.961e-05]
[1737996578813,0.199633,100210.0,100200.0,4.961e-05]
[1737996579014,0.199633,100210.0,100200.0,0.19970261]
[1737996579212,0.560433,100210.0,100200.0,4.961e-05]
[1737996579515,0.560433,100210.0,100200.0,0.19970261]
[1737996579721,0.560433,100210.0,100200.0,0.14983725]
[1737996579920,0.561433,100210.0,100200.0,0.15483725]
[1737996580420,0.200633,100210.0,100200.0,0.15483725]
[1737996580616,0.561433,100210.0,100200.0,0.005]
[1737996581719,0.200633,100210.0,100200.0,0.005]
[1737996582515,0.561433,100210.0,100200.0,0.005]
[1737996582721,0.561433,100210.0,100200.0,0.199653]
[1737996583320,0.001,100210.0,100200.0,0.199653]
[1737996584022,0.200633,100210.0,100200.0,0.199653]
[1737996584213,0.001,100210.0,100200.0,0.199653]
[1737996584608,0.001,100210.0,100200.0,1.84321252]
[1737996584816,0.001,100210.0,100200.0,2.33921252]
[1737996585016,0.561433,100210.0,100200.0,0.1352]
[1737996585323,0.561433,100210.0,100190.0,0.56670057]
[1737996585623,0.001,100210.0,100200.0,0.34321252]
[1737996585817,0.00164712,100230.0,100220.0,0.199613]
[1737996586119,0.20124012,100230.0,100210.0,0.84018652]
[1737996586324,0.199635,100210.0,100190.0,0.71082109]
[1737996586518,0.199635,100210.0,100200.0,0.199653]
[1737996586827,0.200635,100210.0,100200.0,0.199653]
[1737996587025,0.561435,100210.0,100200.0,0.199653]
[1737996587327,0.560435,100210.0,100200.0,0.1994979]
[1737996587623,0.199653,100200.0,100190.0,0.00623757]
[1737996587812,0.199653,100200.0,100160.0,0.0014972]
[1737996587813,0.199713,100170.0,100160.0,0.0014972]
[1737996588017,0.70407252,100170.0,100160.0,0.05146441]
[1737996588321,0.560513,100170.0,100160.0,0.0014972]
[1737996588525,0.50435952,100170.0,100140.0,0.41714884]
[1737996588724,0.560552,100150.0,100140.0,0.41714884]
[1737996589018,0.199752,100150.0,100140.0,0.36728348]
[1737996589225,0.56054,100160.0,100140.0,0.710613]
[1737996589421,0.56068999,100160.0,100140.0,0.710613]
[1737996589618,0.36094999,100160.0,100150.0,0.34331152]
[1737996589812,0.199752,100150.0,100140.0,0.77846686]
[1737996590027,0.200715,100170.0,100150.0,0.199752]
[1737996590221,0.200715,100170.0,100160.0,0.14355952]
[1737996590920,0.001,100170.0,100150.0,0.27525952]
[1737996591121,0.199732,100160.0,100140.0,0.7575109]
[1737996591319,0.001,100150.0,100140.0,0.7575109]
[1737996591522,0.001,100150.0,100140.0,0.75766089]
[1737996591929,0.561552,100150.0,100140.0,0.00366801]
[1737996592321,0.001,100150.0,100140.0,0.70779953]
[1737996592524,0.001,100150.0,100140.0,0.34399953]
[1737996593020,0.560542,100160.0,100140.0,0.34399953]
[1737996593221,0.001,100150.0,100140.0,0.34599953]
[1737996593832,0.3618,100150.0,100140.0,0.00266801]
[1737996594031,0.562552,100150.0,100140.0,0.00266801]
[1737996594215,0.561552,100150.0,100140.0,0.00266801]
[1737996594924,0.199772,100140.0,100130.0,0.49056217]
[1737996595125,0.199772,100140.0,100120.0,0.560605]
[1737996595126,0.199792,100130.0,100120.0,1.5]
[1737996595323,0.199812,100120.0,100110.0,0.4937381]
[1737996595525,0.560612,100120.0,100110.0,0.0014981]
[1737996595724,0.4896,100140.0,100110.0,0.19615908]
[1737996596028,0.199796,100130.0,100110.0,0.50585762]
[1737996596227,0.560596,100130.0,100110.0,0.50585762]
[1737996596731,0.001,100120.0,100110.0,0.5621301]
[1737996596930,0.001,100120.0,100110.0,0.70568962]
[1737996597130,0.560596,100130.0,100110.0,0.50585762]
[1737996597326,0.562596,100130.0,100120.0,0.14355952]
[1737996597629,0.002,100130.0,100120.0,0.70417152]
[1737996597827,0.002,100130.0,100120.0,2.33637152]
[1737996598031,0.001,100130.0,100120.0,2.61213104]
[1737996598630,0.001,100130.0,100120.0,2.46857152]
[1737996599032,0.00014999,100140.0,100130.0,0.199792]
[1737996599233,0.00014999,100140.0,100130.0,0.34335152]
[1737996599440,0.00014999,100140.0,100130.0,0.83295152]
[1737996600035,0.00014999,100140.0,100130.0,0.47215152]
[1737996600236,0.00114999,100140.0,100130.0,0.47215152]
[1737996600429,0.00114999,100140.0,100130.0,0.83295152]
[1737996601135,0.00114999,100140.0,100130.0,0.27235952]
[1737996601331,0.20092199,100140.0,100120.0,1.02001304]
[1737996601527,0.00114999,100140.0,100120.0,1.01949304]
[1737996601728,0.3608,100130.0,100120.0,0.39429804]
[1737996601937,0.20092899,100140.0,100120.0,0.75509804]
[1737996602137,0.3608,100150.0,100130.0,0.50435952]
[1737996602332,0.3608,100150.0,100140.0,0.14355952]
[1737996602527,0.56203638,100160.0,100130.0,0.70413552]
[1737996602731,0.56203638,100160.0,100140.0,0.199771]
[1737996603327,0.56218637,100160.0,100140.0,0.199771]
[1737996603528,0.56218637,100160.0,100150.0,0.70411152]
[1737996603529,0.00164837,100160.0,100150.0,0.70411152]
[1737996603729,0.20139437,100160.0,100130.0,0.50435952]
[1737996604036,0.3608,100150.0,100130.0,0.29563215]
[1737996604235,0.3608,100150.0,100130.0,0.50450951]
[1737996604443,0.3608,100150.0,100140.0,0.199772]
[1737996604642,0.56419237,100160.0,100140.0,0.34333152]
[1737996604841,0.199755,100150.0,100130.0,2.20481651]
[1737996605141,0.560555,100150.0,100130.0,0.56273699]
[1737996605331,0.199755,100150.0,100130.0,0.56273699]
[1737996605531,0.199755,100150.0,100130.0,0.61264706]
[1737996605732,0.560555,100150.0,100130.0,0.61264706]
[1737996606033,0.70413152,100140.0,100130.0,0.05206006]
[1737996606234,0.199812,100120.0,100110.0,0.0014981]
[1737996607037,0.199812,100120.0,100100.0,0.4658]
[1737996607038,0.199812,100120.0,100100.0,0.61728374]
[1737996607446,0.00014999,100120.0,100110.0,0.14355952]
[1737996607645,0.824184,100140.0,100110.0,0.70417852]
[1737996607840,0.001,100120.0,100110.0,0.3608]
[1737996608045,0.3628,100120.0,100100.0,0.10785729]
[1737996608343,0.199832,100110.0,100100.0,0.10785729]
[1737996609138,0.199832,100110.0,100100.0,0.46865729]
[1737996609336,0.199832,100110.0,100100.0,0.10785729]
[1737996609848,0.560632,100110.0,100100.0,0.10785729]
[1737996610042,0.199852,100100.0,100090.0,0.00014999]
[1737996610247,0.70421152,100100.0,100090.0,1e-08]
[1737996610740,0.84101152,100100.0,100090.0,1e-08]
[1737996610949,0.697452,100100.0,100090.0,1e-08]
[1737996611140,0.560652,100100.0,100090.0,1e-08]
[1737996611443,0.561652,100100.0,100090.0,1e-08]
[1737996611743,0.560652,100100.0,100090.0,1e-08]
[1737996611938,0.562652,100100.0,100090.0,1e-08]
[1737996612145,0.201852,100100.0,100090.0,0.14355953]
[1737996612340,0.201852,100100.0,100090.0,1e-08]
[1737996612743,0.201852,100100.0,100090.0,0.36080001]
[1737996612945,0.201852,100100.0,100090.0,1e-08]
[1737996613139,0.201852,100100.0,100080.0,0.70454526]
[1737996613539,0.002,100100.0,100090.0,0.34343152]
[1737996613740,0.201852,100100.0,100080.0,0.34374426]
[1737996613944,0.199872,100090.0,100080.0,0.36109874]
[1737996614138,0.199872,100090.0,100080.0,0.00029874]
[1737996614340,0.50435952,100090.0,100060.0,0.3608]
[1737996614547,0.199932,100060.0,100050.0,2.1199]
[1737996614937,0.56072,100070.0,100050.0,1.32421152]
[1737996615143,0.56086999,100070.0,100050.0,1.32421152]
[1737996615342,0.56086999,100070.0,100050.0,2.82421152]
[1737996615549,0.199932,100060.0,100050.0,0.9807]
[1737996615750,0.3608,100060.0,100050.0,0.5424091]
[1737996616045,0.3608,100060.0,100050.0,0.0498091]
[1737996616046,0.560732,100060.0,100050.0,0.0498091]
[1737996616248,0.560732,100060.0,100040.0,0.3608]
[1737996616249,0.199963,100050.0,100040.0,0.3608]
[1737996616439,0.199963,100050.0,100030.0,0.49784238]
[1737996616642,0.199963,100050.0,100040.0,0.3608]
[1737996616842,0.199963,100050.0,100030.0,0.74854232]
[1737996617038,0.199969,100050.0,100030.0,0.54855332]
[1737996617242,0.560743,100060.0,100040.0,0.3608]
[1737996617441,0.001,100050.0,100040.0,0.3608]
[1737996617647,0.001,100050.0,100040.0,0.560772]
[1737996617847,0.002,100050.0,100040.0,0.560772]
[1737996618048,0.001,100050.0,100040.0,0.560772]
[1737996618254,0.201952,100050.0,100040.0,0.3608]
[1737996618446,0.201952,100050.0,100030.0,0.38773932]
[1737996618842,0.201952,100050.0,100040.0,0.3608]
[1737996619249,0.201952,100050.0,100040.0,0.31093464]
[1737996619448,0.199972,100040.0,100030.0,0.05215332]
[1737996619654,0.200002,100030.0,100000.0,0.759]
[1737996619847,0.70436152,100030.0,100000.0,0.959048]
[1737996620047,0.56095199,100030.0,100000.0,1.00936373]
[1737996620247,0.36094999,100030.0,100010.0,0.14355952]
[1737996620452,0.560829,100020.0,100000.0,1.00936373]
[1737996620750,0.560829,100020.0,100010.0,0.14355952]
[1737996621143,0.200031,100010.0,100000.0,0.41111573]
[1737996621452,0.3608,100010.0,100000.0,0.05031573]
[1737996621647,0.3608,100010.0,99997.0,0.17894202]
[1737996621845,0.4914,100020.0,100000.0,0.70439752]
[1737996622046,0.3618,100020.0,100010.0,0.14355952]
[1737996622245,0.3618,100020.0,100000.0,0.560838]
[1737996622246,0.200043,100010.0,99997.0,0.22846735]
[1737996622550,0.560842,100010.0,99997.0,0.22846735]
[1737996622946,0.3608,100010.0,99997.0,0.22846735]
[1737996623149,0.562819,100020.0,100000.0,0.34360652]
[1737996623353,0.562819,100020.0,100000.0,0.200047]
[1737996623558,0.001,100010.0,100000.0,0.200047]
[1737996623852,0.001,100010.0,99997.0,0.04952533]
[1737996623853,0.202034,100010.0,99998.0,0.3608]
[1737996624059,0.562834,100010.0,99998.0,0.3608]
[1737996624354,0.560834,100010.0,99998.0,0.3608]
[1737996624552,0.3608,100010.0,99997.0,0.04952533]
[1737996624856,0.200061,99995.0,99990.0,1.5]
[1737996625260,0.3608,100000.0,99989.0,0.49413312]
[1737996625558,0.200069,99991.0,99989.0,0.49413312]
[1737996626146,0.560869,99991.0,99989.0,0.05119848]
[1737996626355,0.200108,99971.0,99970.0,0.00150035]
[1737996626547,0.560908,99971.0,99970.0,0.00150035]
[1737996627261,0.921708,99971.0,99970.0,0.00150035]
[1737996627563,0.200121,99964.0,99950.0,0.29703403]
[1737996627750,0.3608,99963.0,99957.0,0.04952254]
[1737996628054,0.3608,99963.0,99958.0,1.5]
[1737996628251,0.3608,99963.0,99962.0,0.12907666]
[1737996629052,0.6608,99963.0,99950.0,0.29703403]
[1737996629358,0.200162,99944.0,99942.0,0.00150104]
[1737996629555,0.3608,99943.0,99942.0,0.00150104]
[1737996630163,0.21058573,99943.0,99942.0,0.00150104]
[1737996630753,0.21058573,99943.0,99913.0,0.29703403]
[1737996630959,0.14355952,99923.0,99913.0,0.29703403]
[1737996631154,0.200197,99927.0,99914.0,0.200221]
[1737996631357,0.00014999,99930.0,99913.0,0.24716867]
[1737996631556,0.200196,99928.0,99915.0,0.200218]
[1737996631748,0.36053895,99939.0,99913.0,0.24716867]
[1737996631957,0.36053895,99939.0,99917.0,0.3458]
[1737996632457,0.36053895,99939.0,99930.0,0.200189]
[1737996632758,0.36053895,99939.0,99920.0,0.00014999]
[1737996633062,0.200197,99927.0,99920.0,0.00014999]
[1737996633263,0.2002,99925.0,99920.0,0.00014999]
[1737996633653,0.001,99927.0,99920.0,0.00014999]
[1737996633854,0.200184,99934.0,99920.0,0.00014999]
[1737996634249,0.3608,99931.0,99920.0,0.00014999]
[1737996634452,0.200241,99905.0,99897.0,0.3608]
[1737996634655,0.200219,99916.0,99901.0,0.17493027]
[1737996634853,0.200202,99924.0,99915.0,0.3608]
[1737996635054,0.001,99925.0,99907.0,0.3608]
[1737996635254,0.2225211,99930.0,99907.0,0.3608]
[1737996635456,0.200226,99912.0,99901.0,0.17493027]
[1737996635858,0.20021,99920.0,99901.0,0.17493027]
[1737996636056,0.20021,99920.0,99907.0,0.3608]
[1737996636460,0.00014999,99930.0,99907.0,0.3608]
[1737996636765,0.200201,99925.0,99919.0,0.3608]
[1737996637155,0.00014999,99930.0,99919.0,0.3608]
[1737996637361,0.00014999,99930.0,99919.0,0.31093464]
[1737996637553,0.001,99920.0,99919.0,0.31093464]
[1737996637959,0.00014999,99930.0,99919.0,0.31093464]
[1737996638260,0.00014999,99930.0,99924.0,0.200202]
[1737996638565,0.00014999,99930.0,99925.0,1.5]
[1737996638864,0.00014999,99930.0,99925.0,1.700199]
[1737996639456,0.00014999,99930.0,99929.0,0.3608]
[1737996639858,0.3608,99957.0,99929.0,0.3608]
[1737996640064,0.200175,99938.0,99930.0,0.1241]
[1737996640455,0.36230178,99947.0,99931.0,1.5]
[1737996640656,0.200166,99943.0,99931.0,1.5]
[1737996640960,0.200159,99946.0,99931.0,1.5]
[1737996641159,0.20016,99945.0,99931.0,1.5]
[1737996641364,0.36330178,99947.0,99931.0,1.5]
[1737996641560,0.00150178,99947.0,99931.0,1.5]
[1737996641868,0.200188,99932.0,99930.0,0.00114999]
[1737996642064,0.200184,99933.0,99930.0,0.00114999]
[1737996642860,0.3608,99938.0,99930.0,0.00114999]
[1737996643273,0.00150178,99947.0,99931.0,0.3608]
[1737996643564,0.00014999,99950.0,99944.0,0.20016]
[1737996643766,0.00014999,99950.0,99942.0,0.31093464]
[1737996644259,0.00014999,99950.0,99949.0,0.200152]
[1737996644467,0.3608,99996.0,99949.0,1.8608]
[1737996644668,0.3608,99985.0,99964.0,0.3608]
[1737996644863,0.560899,99976.0,99965.0,0.1342]
[1737996645166,0.200115,99968.0,99958.0,0.3608]
[1737996645464,0.3608,99976.0,99950.0,0.2661]
[1737996645766,0.3608,99968.0,99951.0,1.5]
[1737996646063,0.3608,99959.0,99950.0,0.31569712]
[1737996646266,0.3608,99959.0,99950.0,0.04959712]
[1737996646467,0.200145,99953.0,99949.0,0.49325176]
[1737996646667,0.200146,99952.0,99949.0,0.49325176]
[1737996647071,0.3618,99968.0,99949.0,0.54443678]
[1737996647371,0.200149,99951.0,99949.0,0.54443678]
[1737996647757,0.3608,99951.0,99940.0,0.00014999]
[1737996647964,0.001,99953.0,99944.0,0.3608]
[1737996648165,0.3608,99969.0,99952.0,0.3608]
[1737996648468,0.200119,99966.0,99952.0,0.3608]
[1737996648771,0.2225211,100000.0,99952.0,0.3608]
[1737996648772,0.543211,100010.0,99965.0,0.3608]
[1737996648971,0.543211,100010.0,99976.0,0.3608]
[1737996649172,0.4932,100010.0,99977.0,0.1361]
[1737996649566,0.200071,99990.0,99977.0,0.08623464]
[1737996649770,0.543207,100010.0,99977.0,0.08623464]
[1737996649771,0.4932,100010.0,99977.0,0.08623464]
[1737996649964,0.00014999,99990.0,99979.0,0.20009]
[1737996650168,0.00014999,99990.0,99989.0,0.3608]
[1737996650370,0.200051,100000.0,99989.0,0.3608]
[1737996650565,0.3608,100020.0,99999.0,0.3608]
[1737996650764,0.20003,100010.0,100000.0,0.1283]
[1737996651469,0.20005,100000.0,99989.0,0.3618]
[1737996651675,0.410807,100020.0,99990.0,0.00014999]
[1737996651676,0.200068,99991.0,99990.0,0.00014999]
[1737996651968,0.560868,99991.0,99990.0,0.00014999]
[1737996652359,0.560868,99991.0,99989.0,9.9e-07]
[1737996652560,0.200101,99975.0,99962.0,0.200125]
[1737996652858,0.200119,99966.0,99964.0,0.3608]
[1737996653476,0.3608,99969.0,99958.0,0.1264]
[1737996653768,0.200136,99957.0,99956.0,0.05134159]
[1737996653978,0.560936,99957.0,99956.0,0.05134159]
[1737996654166,0.560936,99957.0,99956.0,0.0011335]
[1737996654771,0.200136,99957.0,99956.0,0.0011335]
[1737996655074,0.001,99966.0,99956.0,0.0011335]
[1737996655474,0.200131,99960.0,99956.0,0.0011335]
[1737996655676,0.200131,99960.0,99951.0,1.5]
[1737996655867,0.200134,99958.0,99951.0,1.5]
[1737996656673,0.200122,99964.0,99951.0,1.5]
[1737996656874,0.200138,99956.0,99951.0,1.5]
[1737996657474,0.001,99958.0,99951.0,1.5]
[1737996657664,0.001,99958.0,99956.0,0.200137]
[1737996657868,0.001,99958.0,99951.0,1.50052]
[1737996658065,0.001,99958.0,99951.0,1.5]
[1737996658369,0.3618,99958.0,99942.0,0.1268]
[1737996658574,0.001,99958.0,99943.0,0.3608]
[1737996658779,0.001,99958.0,99948.0,0.14431019]
[1737996658981,0.001,99958.0,99954.0,0.200141]
[1737996659279,0.001,99956.0,99949.0,1.50056]
[1737996659470,0.001,99956.0,99949.0,1.5]
[1737996659772,0.001,99958.0,99951.0,0.3608]
[1737996660276,0.36094999,99970.0,99951.0,0.3608]
[1737996660478,0.001,99956.0,99951.0,0.560947]
[1737996660771,0.001,99956.0,99951.0,0.3608]
[1737996660962,0.001,99956.0,99954.0,0.20014]
[1737996661168,0.00014999,99970.0,99951.0,0.3608]
[1737996661365,0.00014999,99970.0,99952.0,0.200144]
[1737996661570,0.00014999,99970.0,99963.0,0.200123]
[1737996661767,0.00014999,99970.0,99959.0,0.3608]
[1737996662377,0.00014999,99970.0,99968.0,0.200113]
[1737996662572,0.00014999,99970.0,99969.0,0.3608]
[1737996662779,0.3608,100000.0,99969.0,0.6608]
[1737996662973,0.200062,99995.0,99982.0,0.200084]
[1737996663179,0.200067,99992.0,99983.0,1.5]
[1737996663371,0.410807,100010.0,99983.0,1.5]
[1737996663372,0.200053,99999.0,99983.0,1.5]
[1737996663572,0.50511019,100010.0,99983.0,1.5]
[1737996663776,0.20006,99995.0,99983.0,1.5]
[1737996663971,0.00014999,100000.0,99986.0,0.200076]
[1737996664172,0.200052,99999.0,99988.0,0.3608]
[1737996664374,0.200052,99999.0,99987.0,0.200075]
[1737996664375,0.200062,99994.0,99983.0,1.55139594]
[1737996664576,0.200062,99994.0,99983.0,1.55079594]
[1737996664868,0.56086,99995.0,99985.0,0.20008]
[1737996665378,0.00014999,100000.0,99988.0,0.3608]
[1737996665575,0.00014999,100000.0,99998.0,0.560852]
[1737996665776,1e-08,100000.0,99999.0,1.5]
[1737996666674,0.199993,100030.0,99999.0,2.29332]
[1737996666872,0.199993,100030.0,100020.0,0.3608]
[1737996667274,0.3608,100040.0,100020.0,0.3608]
[1737996667478,0.56078,100040.0,100020.0,0.70511619]
[1737996667679,0.19999,100030.0,100020.0,0.3608]
[1737996667881,0.19999,100030.0,100020.0,0.00014999]
[1737996668979,0.56092199,100040.0,100020.0,0.70526218]
[1737996669185,0.60986553,100040.0,100020.0,0.36094999]
[1737996669383,0.56079,100030.0,100020.0,0.00014999]
[1737996669771,0.70510019,100030.0,100020.0,0.00014999]
[1737996669987,0.71410019,100030.0,100020.0,0.00014999]
[1737996670176,0.81411019,100030.0,99989.0,0.00149986]
[1737996670380,0.20007,99990.0,99989.0,0.00149986]
[1737996670574,0.3608,99994.0,99959.0,0.49328]
[1737996670774,0.33863238,100000.0,99959.0,0.44341464]
[1737996670775,0.20013,99960.0,99959.0,0.44341464]
[1737996671178,0.20011,99971.0,99959.0,0.44341464]
[1737996671378,0.3608,99978.0,99959.0,0.44341464]
[1737996671379,0.3608,99978.0,99960.0,0.14431019]
[1737996671584,0.00014999,99970.0,99959.0,0.44341464]
[1737996672680,0.200129,99961.0,99958.0,0.0511519]
[1737996672880,0.200129,99961.0,99950.0,0.00014999]
[1737996673180,0.200132,99959.0,99950.0,0.00014999]
[1737996673477,0.3608,99962.0,99950.0,0.05002097]
[1737996673683,0.36194999,99970.0,99955.0,0.3608]
[1737996673875,0.3608,99986.0,99968.0,0.3608]
[1737996674075,0.3608,99986.0,99970.0,0.14431019]
[1737996674279,0.3608,99986.0,99985.0,0.20008]
[1737996674479,0.200051,100000.0,99976.0,0.3608]
[1737996674480,0.3608,100000.0,99976.0,0.3608]
[1737996674675,0.56233959,100010.0,99985.0,0.3608]
[1737996674879,0.56233959,100010.0,99995.0,1.5]
[1737996675188,0.56248958,100010.0,99995.0,1.5]
[1737996675387,0.56249558,100010.0,99995.0,1.5]
[1737996675583,0.36245058,100010.0,99990.0,0.00014999]
[1737996675888,0.56248558,100010.0,99990.0,0.00014999]
[1737996676077,0.56248558,100010.0,99990.0,0.14446018]
[1737996676285,0.56248558,100010.0,99992.0,0.200065]
[1737996676484,0.200067,99992.0,99990.0,0.00014999]
[1737996676685,0.200067,99992.0,99990.0,0.00010078]
[1737996676890,0.3608,99993.0,99952.0,0.3608]
[1737996677190,0.33863238,100000.0,99944.0,0.20016]
[1737996677191,0.200135,99958.0,99944.0,0.20016]
[1737996677384,0.3608,99977.0,99942.0,0.1294]
[1737996677385,0.3608,99977.0,99948.0,0.14431019]
[1737996677590,0.200099,99976.0,99964.0,0.200122]
[1737996677894,0.3608,99977.0,99967.0,0.3608]
[1737996678190,0.560897,99977.0,99967.0,0.3608]
[1737996678380,0.3608,99968.0,99960.0,0.00014999]
[1737996678584,0.200128,99962.0,99960.0,0.00014999]
[1737996679188,0.200168,99941.0,99940.0,0.00150082]
[1737996679391,0.3608,99941.0,99932.0,0.04937701]
[1737996679689,0.200194,99928.0,99927.0,0.49332]
[1737996679889,0.3608,99933.0,99927.0,0.44345464]
[1737996680191,0.200193,99929.0,99927.0,0.44345464]
[1737996680378,0.3608,99933.0,99927.0,0.44345464]
[1737996681088,0.3608,99933.0,99920.0,0.00014999]
[1737996681288,0.3608,99921.0,99920.0,0.00014999]
[1737996681980,0.3618,99929.0,99920.0,0.00014999]
[1737996682181,0.3618,99929.0,99920.0,0.04906652]
[1737996682993,0.200201,99925.0,99912.0,0.36150248]
[1737996683589,0.3618,99929.0,99920.0,0.004]
[1737996684291,0.001,99925.0,99919.0,0.200211]
[1737996684479,0.3608,99939.0,99924.0,0.3608]
[1737996684684,0.3608,99951.0,99936.0,0.3608]
[1737996684881,0.200113,99969.0,99950.0,0.200148]
[1737996685193,0.200113,99969.0,99959.0,0.3608]
[1737996685494,0.3608,99982.0,99963.0,0.200123]
[1737996685879,0.3608,99982.0,99960.0,1.50052]
[1737996685880,0.200097,99977.0,99960.0,1.50066999]
[1737996686080,0.560903,99974.0,99960.0,0.00014999]
[1737996686290,0.3608,99974.0,99962.0,0.200125]
[1737996686596,0.3608,99974.0,99960.0,0.27394505]
[1737996686786,0.00014999,99980.0,99975.0,0.200098]
[1737996686987,0.00014999,99980.0,99978.0,0.200093]
[1737996687193,0.65294448,100010.0,99973.0,0.3608]
[1737996687393,0.09211048,100010.0,99993.0,0.3608]
[1737996687696,0.09211048,100010.0,99999.0,0.20005]
[1737996688098,0.09211048,100010.0,100000.0,0.22254309]
[1737996688389,0.00014999,100020.0,100010.0,0.200024]
[1737996688591,0.36094999,100020.0,100000.0,0.42258809]
[1737996688895,0.36094999,100020.0,100000.0,0.3608]
[1737996688896,0.56096299,100020.0,100000.0,0.3608]
[1737996689086,0.560837,100010.0,99990.0,0.04983429]
[1737996689286,0.200037,100010.0,99986.0,0.31108463]
[1737996689488,0.200037,100010.0,99997.0,0.3608]
[1737996689787,0.200037,100010.0,100000.0,0.004]
[1737996689981,0.560837,100010.0,100000.0,0.004]
[1737996690489,0.200067,99992.0,99990.0,0.00014999]
[1737996692290,0.3608,99993.0,99957.0,0.3608]
[1737996692493,0.05401,100010.0,99953.0,0.49336]
[1737996692494,0.200134,99958.0,99953.0,0.49336]
[1737996692686,0.3608,99962.0,99953.0,0.49336]
[1737996692894,0.3608,99962.0,99953.0,0.54280408]
[1737996693798,0.200122,99964.0,99953.0,0.54280408]
[1737996693993,0.001,99958.0,99953.0,0.54680408]
[1737996694594,0.001,99958.0,99957.0,0.200136]
[1737996694791,0.00014999,99970.0,99954.0,0.00052]
[1737996694999,0.00014999,99970.0,99969.0,0.3608]
[1737996695292,0.3608,99996.0,99980.0,0.200089]
[1737996695488,0.560843,100010.0,99991.0,0.3608]
[1737996695701,0.200043,100010.0,100000.0,0.3608]
[1737996696901,0.5624666,100020.0,100000.0,0.3608]
[1737996697296,0.20303,100010.0,100000.0,0.3608]
[1737996698195,0.20303,100010.0,99991.0,0.41148556]
[1737996698405,0.200058,99996.0,99991.0,0.05068556]
[1737996698595,0.200058,99996.0,99990.0,0.00014999]
[1737996698897,0.56084,100010.0,99990.0,0.00014999]
[1737996699103,0.56096499,100020.0,99999.0,0.3608]
[1737996700000,0.56096499,100020.0,99990.0,0.22269308]
[1737996700001,0.001,100010.0,99990.0,0.22269308]
[1737996700194,0.200053,99999.0,99990.0,0.00014999]
[1737996700399,0.201039,100010.0,99994.0,0.200061]
[1737996700594,0.36094999,100020.0,99999.0,0.200051]
[1737996700595,0.36494999,100020.0,99999.0,0.200051]
[1737996700796,0.56496999,100020.0,99999.0,0.200051]
[1737996700993,0.56496999,100020.0,99991.0,1.5006]
[1737996701190,0.56496999,100020.0,100000.0,0.15017764]
[1737996701397,0.3608,100010.0,100000.0,0.20005]
[1737996701702,0.00414999,100020.0,100010.0,0.20003]
[1737996701898,0.00414999,100020.0,100010.0,0.78337309]
[1737996702098,0.00014999,100020.0,100010.0,0.78337309]
[1737996702597,0.00014999,100020.0,100000.0,0.6163]
[1737996702598,0.00014999,100020.0,100000.0,0.83884309]
[1737996702798,0.20116199,100020.0,100000.0,0.816345]
[1737996702999,0.20116199,100020.0,100010.0,0.3608]
[1737996703311,0.20003,100010.0,100000.0,0.3608]
[1737996703495,0.20117499,100020.0,100000.0,0.560847]
[1737996703896,0.20017499,100020.0,100000.0,0.562847]
[1737996704096,0.20017499,100020.0,100010.0,0.3608]
[1737996704296,0.20017499,100020.0,100000.0,0.562847]
[1737996704496,0.20017499,100020.0,100010.0,0.3608]
[1737996704894,0.20017499,100020.0,100000.0,0.61262372]
[1737996705499,0.20103,100010.0,100000.0,0.41557672]
[1737996705901,0.001,100010.0,100000.0,0.41557672]
[1737996706207,0.00014999,100020.0,100000.0,0.63311981]
[1737996706208,0.00114999,100020.0,100000.0,0.63311981]
[1737996706404,0.20115999,100020.0,100010.0,0.3608]
[1737996706706,0.199977,100040.0,100020.0,0.199994]
[1737996707001,0.22911059,100050.0,100010.0,0.58334309]
[1737996707002,0.42906459,100050.0,100030.0,1.14413009]
[1737996707303,0.58991059,100050.0,100010.0,2.65917773]
[1737996707508,0.3608,100040.0,100020.0,0.3608]
[1737996707702,0.200005,100030.0,100010.0,2.40514754]
[1737996708003,0.610787,100030.0,100020.0,0.00014999]
[1737996708211,0.00014999,100040.0,100020.0,0.00014999]
[1737996708212,0.00014999,100040.0,100020.0,0.36080001]
[1737996708400,0.09361059,100050.0,100030.0,0.58334309]
[1737996708707,0.09361059,100050.0,100040.0,0.3608]
[1737996709009,0.09361059,100050.0,100040.0,0.56077]
[1737996709398,0.0919605,100050.0,100040.0,0.56077]
[1737996709802,0.20008199,100060.0,100040.0,0.58334309]
[1737996710109,0.009,100050.0,100040.0,0.63405986]
[1737996710403,0.009,100050.0,100040.0,0.83402986]
[1737996711109,0.001,100050.0,100040.0,0.83802986]
[1737996711312,0.001,100050.0,100040.0,0.7692455]
[1737996711805,0.200949,100050.0,100040.0,0.5692755]
[1737996712197,0.561749,100050.0,100040.0,0.005]
[1737996712506,0.561749,100050.0,100020.0,0.2230631]
[1737996712507,0.683487,100050.0,100020.0,0.2225431]
[1737996712708,0.199989,100030.0,100020.0,0.27336822]
[1737996713400,0.199989,100030.0,100020.0,0.05082512]
[1737996713608,0.199989,100030.0,100010.0,0.56232783]
[1737996713805,0.36094999,100040.0,100010.0,0.61257266]
[1737996714005,0.005,100030.0,100020.0,0.42353909]
[1737996714212,0.005,100030.0,100020.0,0.78433909]
[1737996715506,0.005,100030.0,100020.0,0.58434309]
[1737996715814,0.204989,100030.0,100020.0,0.22354309]
[1737996716012,0.199989,100030.0,100020.0,0.22254309]
[1737996716406,0.199989,100030.0,100010.0,0.61272065]
[1737996716613,0.201989,100030.0,100010.0,0.83526374]
[1737996718307,0.201989,100030.0,100010.0,2.33526374]
[1737996718705,0.201989,100030.0,100010.0,0.05189465]
[1737996718706,0.560809,100020.0,100010.0,0.05189465]
[1737996718910,0.200054,99998.0,99980.0,0.20158834]
[1737996719207,0.050007,100010.0,99980.0,0.20158834]